fUSD/lending_fUSD_20250123
["ID","MTS","AMOUNT","RATE_DAILY","PERIOD"]
[350126591,1737645039222,-500.0,0.00016712,2]
[350126593,1737645039232,-500.0,0.00016712,2]
[350126595,1737645039242,-500.0,0.00016712,2]
[350126597,1737645039252,-500.0,0.00016712,2]
[350126599,1737645039261,-500.0,0.00016712,2]
[350126601,1737645039271,-500.0,0.00016712,2]
[350126603,1737645039281,-500.0,0.00016712,2]
[350126605,1737645039290,-500.0,0.00016712,2]
[350126607,1737645039305,-500.0,0.00016712,2]
[350126610,1737645039314,-500.0,0.00016712,2]
[350126612,1737645039324,-500.0,0.00016712,2]
[350126614,1737645039334,-561.4,0.00016712,2]
[350126616,1737645039344,-500.0,0.00016712,2]
[350126618,1737645039353,-500.0,0.00016712,2]
[350126620,1737645039363,-500.0,0.00016712,2]
[350126621,1737645039374,-500.0,0.00016712,2]
[350126623,1737645039384,-500.0,0.00016712,2]
[350126625,1737645039395,-500.0,0.00016712,2]
[350126626,1737645039406,-500.0,0.00016712,2]
[350126628,1737645039416,-500.0,0.00016712,2]
[350126630,1737645039427,-770.38,0.00016712,2]
[350126632,1737645039437,-500.0,0.00016712,2]
[350126634,1737645039447,-500.0,0.00016712,2]
[350126636,1737645039456,-500.0,0.00016712,2]
[350126638,1737645039466,-553.93,0.00016712,2]
[350126640,1737645039477,-500.0,0.00016712,2]
[350126642,1737645039487,-816.19,0.00016712,2]
[350126644,1737645039497,-500.0,0.00016712,2]
[350126646,1737645039507,-500.0,0.00016712,2]
[350126648,1737645039517,-500.0,0.00016712,2]
[350126650,1737645039527,-500.0,0.00016712,2]
[350126652,1737645039537,-500.0,0.00016712,2]
[350126654,1737645039546,-500.0,0.00016712,2]
[350126656,1737645039561,-500.0,0.00016712,2]
[350126657,1737645039571,-500.0,0.00016712,2]
[350126659,1737645039581,-500.0,0.00016712,2]
[350126661,1737645039591,-500.0,0.00016712,2]
[350126663,1737645039601,-500.0,0.00016712,2]
[350126665,1737645039611,-200.0,0.00016712,2]
[350126667,1737645039620,-500.0,0.00016712,2]
[350126669,1737645039630,-533.86,0.00016712,2]
[350126671,1737645039641,-500.0,0.00016712,2]
[350126673,1737645039650,-500.0,0.00016712,2]
[350126675,1737645039661,-500.0,0.00016712,2]
[350126677,1737645039671,-500.0,0.00016712,2]
[350126679,1737645039681,-500.0,0.00016712,2]
[350126681,1737645039692,-500.0,0.00016712,2]
[350126683,1737645039702,-500.0,0.00016712,2]
[350126685,1737645039712,-500.0,0.00016712,2]
[350126687,1737645039721,-500.0,0.00016712,2]
[350126689,1737645039731,-665.01,0.00016712,2]
[350126691,1737645039740,-500.0,0.00016712,2]
[350126693,1737645039751,-500.0,0.00016712,2]
[350126695,1737645039760,-591.449939,0.00016712,2]
[350126697,1737645039770,-500.0,0.00016712,2]
[350126699,1737645039779,-598.39,0.00016712,2]
[350126701,1737645039789,-500.0,0.00016712,2]
[350126703,1737645039803,-500.0,0.00016712,2]
[350126705,1737645039814,-500.0,0.00016712,2]
[350126707,1737645039825,-666.93,0.00016712,2]
[350126709,1737645039835,-500.0,0.00016712,2]
[350126711,1737645039846,-413.75563665,0.00016712,2]
[350126713,1737645039856,-665.125062,0.00016712,2]
[350126715,1737645039868,-611.43,0.00016712,2]
[350126716,1737645039878,-500.0,0.00016712,2]
[350126718,1737645039889,-440.66375028,0.00016712,2]
[350126720,1737645039898,-500.0,0.00016712,2]
[350126722,1737645039907,-500.0,0.00016712,2]
[350126724,1737645039918,-500.0,0.00016712,2]
[350126726,1737645039927,-500.0,0.00016712,2]
[350126728,1737645039937,-500.0,0.00016712,2]
[350126730,1737645039947,-500.0,0.00016712,2]
[350126732,1737645039957,-500.0,0.00016712,2]
[350126734,1737645039966,-500.0,0.00016712,2]
[350126736,1737645039976,-500.0,0.00016712,2]
[350126738,1737645039986,-645.07,0.00016712,2]
[350126740,1737645039995,-500.0,0.00016712,2]
[350126742,1737645040005,-301.07996647,0.00016712,2]
[350126744,1737645040014,-500.0,0.00016712,2]
[350126746,1737645040024,-500.0,0.00016712,2]
[350126748,1737645040033,-500.0,0.00016712,2]
[350126750,1737645040043,-574.7,0.00016712,2]
[350126752,1737645040057,-394.75326748,0.00016712,2]
[350126754,1737645040066,-500.0,0.00016712,2]
[350126768,1737645040077,-150.24607783,0.00016712,2]
[350126770,1737645040214,-500.0,0.00016712,2]
[350126772,1737645040224,-500.0,0.00016712,2]
[350126774,1737645040234,-665.43,0.00016712,2]
[350126776,1737645040244,-500.0,0.00016712,2]
[350126778,1737645040254,-500.0,0.00016712,2]
[350126780,1737645040264,-643.73,0.00016712,2]
[350126782,1737645040274,-500.0,0.00016712,2]
[350126784,1737645040284,-500.0,0.00016712,2]
[350126786,1737645040294,-500.0,0.00016712,2]
[350126788,1737645040309,-512.19,0.00016712,2]
[350126790,1737645040319,-500.0,0.00016712,2]
[350126792,1737645040329,-661.94,0.00016712,2]
[350126794,1737645040339,-500.0,0.00016712,2]
[350126796,1737645040349,-500.0,0.00016712,2]
[350126798,1737645040359,-667.89,0.00016712,2]
[350126801,1737645040369,-539.11,0.00016712,2]
[350126805,1737645040379,-624.02,0.00016712,2]
[350126809,1737645040390,-500.0,0.00016712,2]
[350126812,1737645040400,-500.0,0.00016712,2]
[350126815,1737645040409,-500.0,0.00016712,2]
[350126818,1737645040419,-500.0,0.00016712,2]
[350126821,1737645040428,-500.0,0.00016712,2]
[350126824,1737645040438,-500.0,0.00016712,2]
[350126827,1737645040448,-652.9,0.00016712,2]
[350126830,1737645040458,-566.04,0.00016712,2]
[350126833,1737645040468,-500.0,0.00016712,2]
[350126836,1737645040478,-500.0,0.00016712,2]
[350126839,1737645040487,-500.0,0.00016712,2]
[350126842,1737645040498,-618.01,0.00016712,2]
[350126845,1737645040508,-500.0,0.00016712,2]
[350126848,1737645040518,-607.91,0.00016712,2]
[350126851,1737645040528,-530.48,0.00016712,2]
[350126854,1737645040538,-500.0,0.00016712,2]
[350126857,1737645040547,-500.0,0.00016712,2]
[350126860,1737645040559,-500.0,0.00016712,2]
[350126863,1737645040569,-500.0,0.00016712,2]
[350126865,1737645040579,-500.0,0.00016712,2]
[350126867,1737645040590,-500.0,0.00016712,2]
[350126869,1737645040600,-500.0,0.00016712,2]
[350126871,1737645040610,-500.0,0.00016712,2]
[350126873,1737645040619,-500.0,0.00016712,2]
[350126875,1737645040629,-500.0,0.00016712,2]
[350126877,1737645040638,-690.5,0.00016712,2]
[350126879,1737645040648,-731.93,0.00016712,2]
[350126881,1737645040658,-2136.21,0.00016712,2]
[350126882,1737645040669,-500.0,0.00016712,2]
[350126883,1737645040679,-500.0,0.00016712,2]
[350126885,1737645040689,-512.67774885,0.00016712,2]
[350126887,1737645040700,-719.7,0.00016712,2]
[350126889,1737645040709,-500.0,0.00016712,2]
[350126892,1737645040719,-1077.18,0.00016712,2]
[350126894,1737645040729,-500.0,0.00016712,2]
[350126896,1737645040738,-689.78,0.00016712,2]
[350126898,1737645040747,-2051.15,0.00016712,2]
[350126900,1737645040757,-500.0,0.00016712,2]
[350126902,1737645040767,-500.0,0.00016712,2]
[350126904,1737645040776,-500.0,0.00016712,2]
[350126906,1737645040786,-500.0,0.00016712,2]
[350126908,1737645040795,-636.7,0.00016712,2]
[350126909,1737645040809,-500.0,0.00016712,2]
[350126911,1737645040820,-1135.64,0.00016712,2]
[350126913,1737645040829,-500.0,0.00016712,2]
[350126915,1737645040840,-767.11,0.00016712,2]
[350126918,1737645040850,-500.0,0.00016712,2]
[350126919,1737645040859,-1199.19,0.00016712,2]
[350126922,1737645040869,-500.0,0.00016712,2]
[350126923,1737645040878,-500.0,0.00016712,2]
[350126925,1737645040887,-500.0,0.00016712,2]
[350126927,1737645040896,-2308.51,0.00016712,2]
[350126930,1737645040906,-500.0,0.00016712,2]
[350126932,1737645040916,-1391.13,0.00016712,2]
[350126934,1737645040926,-698.63,0.00016712,2]
[350126936,1737645040934,-562.02,0.00016712,2]
[350126937,1737645040943,-891.18,0.00016712,2]
[350126939,1737645040952,-500.0,0.00016712,2]
[350126941,1737645040961,-819.79,0.00016712,2]
[350126943,1737645040970,-2597.36,0.00016712,2]
[350126945,1737645040981,-500.0,0.00016712,2]
[350126947,1737645040991,-2134.79,0.00016712,2]
[350126949,1737645041000,-500.0,0.00016712,2]
[350126951,1737645041009,-500.0,0.00016712,2]
[350126953,1737645041019,-500.0,0.00016712,2]
[350126955,1737645041028,-1084.72,0.00016712,2]
[350126957,1737645041037,-500.0,0.00016712,2]
[350126959,1737645041048,-500.0,0.00016712,2]
[350126962,1737645041061,-500.0,0.00016712,2]
[350126964,1737645041071,-500.0,0.00016712,2]
[350126966,1737645041085,-500.0,0.00016712,2]
[350126968,1737645041095,-844.37,0.00016712,2]
[350126970,1737645041103,-875.15,0.00016712,2]
[350126972,1737645041113,-560.99,0.00016712,2]
[350126974,1737645041123,-500.0,0.00016712,2]
[350126976,1737645041133,-500.0,0.00016712,2]
[350126978,1737645041142,-1539.16,0.00016712,2]
[350126980,1737645041151,-3578.96,0.00016712,2]
[350126981,1737645041161,-961.42,0.00016712,2]
[350126983,1737645041170,-500.0,0.00016712,2]
[350126985,1737645041180,-500.0,0.00016712,2]
[350126987,1737645041189,-500.0,0.00016712,2]
[350126989,1737645041199,-500.0,0.00016712,2]
[350126991,1737645041208,-1081.57,0.00016712,2]
[350126993,1737645041217,-1292.3,0.00016712,2]
[350126995,1737645041226,-500.0,0.00016712,2]
[350126997,1737645041236,-1071.81,0.00016712,2]
[350126999,1737645041245,-942.02,0.00016712,2]
[350127001,1737645041254,-663.05,0.00016712,2]
[350127003,1737645041264,-571.59,0.00016712,2]
[350127006,1737645041274,-500.0,0.00016712,2]
[350127008,1737645041283,-860.73,0.00016712,2]
[350127009,1737645041292,-500.0,0.00016712,2]
[350127011,1737645041305,-500.0,0.00016712,2]
[350127013,1737645041314,-500.0,0.00016712,2]
[350127015,1737645041323,-1013.61,0.00016712,2]
[350127017,1737645041333,-500.0,0.00016712,2]
[350127019,1737645041342,-2194.45,0.00016712,2]
[350127021,1737645041351,-2177.45,0.00016712,2]
[350127023,1737645041361,-500.0,0.00016712,2]
[350127025,1737645041370,-500.0,0.00016712,2]
[350127027,1737645041379,-1776.29,0.00016712,2]
[350127029,1737645041387,-500.0,0.00016712,2]
[350127031,1737645041397,-500.0,0.00016712,2]
[350127033,1737645041406,-1994.1,0.00016712,2]
[350127035,1737645041415,-568.36,0.00016712,2]
[350127038,1737645041425,-500.0,0.00016712,2]
[350127039,1737645041434,-500.0,0.00016712,2]
[350127041,1737645041443,-500.0,0.00016712,2]
[350127043,1737645041452,-500.0,0.00016712,2]
[350127046,1737645041462,-2026.27,0.00016712,2]
[350127048,1737645041471,-802.95,0.00016712,2]
[350127050,1737645041482,-500.0,0.00016712,2]
[350127052,1737645041491,-1138.65,0.00016712,2]
[350127054,1737645041500,-633.78,0.00016712,2]
[350127056,1737645041509,-2021.12,0.00016712,2]
[350127057,1737645041518,-2256.79,0.00016712,2]
[350127059,1737645041528,-926.7,0.00016712,2]
[350127062,1737645041537,-500.0,0.00016712,2]
[350127063,1737645041546,-647.06,0.00016712,2]
[350127065,1737645041559,-500.0,0.00016712,2]
[350127067,1737645041569,-500.0,0.00016712,2]
[350127069,1737645041578,-694.41,0.00016712,2]
[350127072,1737645041587,-1999.78,0.00016712,2]
[350127073,1737645041596,-163.37013092,0.00016712,2]
[350127075,1737645041606,-500.0,0.00016712,2]
[350127078,1737645041615,-1677.66,0.00016712,2]
[350127080,1737645041624,-1225.64,0.00016712,2]
[350127082,1737645041633,-620.21,0.00016712,2]
[350127083,1737645041643,-2256.93,0.00016712,2]
[350127085,1737645041652,-500.0,0.00016712,2]
[350127088,1737645041663,-500.0,0.00016712,2]
[350127090,1737645041673,-3498.12,0.00016712,2]
[350127092,1737645041682,-500.0,0.00016712,2]
[350127094,1737645041692,-1145.96,0.00016712,2]
[350127096,1737645041701,-522.95859673,0.00016712,2]
[350127098,1737645041711,-949.84,0.00016712,2]
[350127099,1737645041720,-1175.82,0.00016712,2]
[350127101,1737645041729,-500.0,0.00016712,2]
[350127104,1737645041739,-500.0,0.00016712,2]
[350127105,1737645041748,-500.0,0.00016712,2]
[350127107,1737645041758,-1697.68,0.00016712,2]
[350127109,1737645041767,-2367.62,0.00016712,2]
[350127111,1737645041777,-500.0,0.00016712,2]
[350127113,1737645041788,-599.48091151,0.00016712,2]
[350127115,1737645041798,-1190.26,0.00016712,2]
[350127117,1737645041812,-500.0,0.00016712,2]
[350127119,1737645041822,-1015.53,0.00016712,2]
[350127121,1737645041831,-941.79,0.00016712,2]
[350127123,1737645041841,-500.0,0.00016712,2]
[350127125,1737645041851,-500.0,0.00016712,2]
[350127127,1737645041860,-500.0,0.00016712,2]
[350127129,1737645041870,-500.0,0.00016712,2]
[350127131,1737645041879,-500.0,0.00016712,2]
[350127133,1737645041889,-768.15,0.00016712,2]
[350127135,1737645041899,-2329.03,0.00016712,2]
[350127137,1737645041908,-1787.15,0.00016712,2]
[350127139,1737645041918,-500.0,0.00016712,2]
[350127141,1737645041927,-500.0,0.00016712,2]
[350127143,1737645041937,-500.0,0.00016712,2]
[350127145,1737645041946,-503.37,0.00016712,2]
[350127147,1737645041956,-500.0,0.00016712,2]
[350127149,1737645041966,-947.65,0.00016712,2]
[350127151,1737645041975,-846.16,0.00016712,2]
[350127153,1737645041985,-500.0,0.00016712,2]
[350127155,1737645041995,-500.0,0.00016712,2]
[350127157,1737645042005,-500.0,0.00016712,2]
[350127159,1737645042014,-500.0,0.00016712,2]
[350127161,1737645042024,-667.14,0.00016712,2]
[350127163,1737645042034,-500.0,0.00016712,2]
[350127165,1737645042044,-641.82,0.00016712,2]
[350127167,1737645042058,-1623.82,0.00016712,2]
[350127169,1737645042068,-867.94,0.00016712,2]
[350127171,1737645042079,-522.55,0.00016712,2]
[350127173,1737645042088,-891.94,0.00016712,2]
[350127175,1737645042098,-500.0,0.00016712,2]
[350127178,1737645042111,-500.0,0.00016712,2]
[350127180,1737645042120,-500.0,0.00016712,2]
[350127181,1737645042130,-632.9423554,0.00016712,2]
[350127184,1737645042140,-500.0,0.00016712,2]
[350127185,1737645042150,-2335.77,0.00016712,2]
[350127187,1737645042159,-848.4,0.00016712,2]
[350127189,1737645042169,-1465.77,0.00016712,2]
[350127191,1737645042178,-500.0,0.00016712,2]
[350127194,1737645042188,-867.64,0.00016712,2]
[350127196,1737645042198,-500.0,0.00016712,2]
[350127198,1737645042209,-500.0,0.00016712,2]
[350127200,1737645042219,-681.4,0.00016712,2]
[350127201,1737645042228,-500.0,0.00016712,2]
[350127204,1737645042238,-500.0,0.00016712,2]
[350127206,1737645042248,-1257.3,0.00016712,2]
[350127208,1737645042258,-914.06,0.00016712,2]
[350127210,1737645042267,-500.0,0.00016712,2]
[350127212,1737645042276,-546.73,0.00016712,2]
[350127213,1737645042286,-500.0,0.00016712,2]
[350127215,1737645042295,-592.48,0.00016712,2]
[350127217,1737645042306,-500.0,0.00016712,2]
[350127219,1737645042316,-500.0,0.00016712,2]
[350127221,1737645042326,-1167.46,0.00016712,2]
[350127223,1737645042335,-2691.81,0.00016712,2]
[350127225,1737645042345,-500.0,0.00016712,2]
[350127227,1737645042355,-2081.79,0.00016712,2]
[350127229,1737645042365,-500.0,0.00016712,2]
[350127231,1737645042374,-500.0,0.00016712,2]
[350127233,1737645042384,-961.82,0.00016712,2]
[350127235,1737645042393,-673.0289804,0.00016752,2]
[350127237,1737645042403,-500.0,0.00016775,2]
[350127239,1737645042412,-1500.0,0.000168,6]
[350127241,1737645042421,-3901.0,0.00016849,2]
[350127243,1737645042431,-150.0,0.00016849,2]
[350127245,1737645042440,-963.784,0.00016849,2]
[350127247,1737645042450,-6428.7263,0.00016886,2]
[350127249,1737645042460,-12868.2015,0.00016886,2]
[350127251,1737645042470,-2000.0,0.000169,6]
[350127253,1737645042479,-734.0,0.000169,2]
[350127255,1737645042489,-745.0,0.000169,2]
[350127257,1737645042498,-954.0,0.000169,2]
[350127259,1737645042508,-1196.3805175,0.000169,2]
[350127261,1737645042518,-1000.0,0.00016933,2]
[350127263,1737645042529,-222.76,0.00016952,2]
[350127265,1737645042538,-673.0289804,0.00016959,2]
[350127267,1737645042548,-1000.0,0.00016963,2]
[350127269,1737645042562,-1000.0,0.00016984,2]
[350127271,1737645042572,-960.3,0.00016985,2]
[350127272,1737645042581,-2470.74,0.00016985,2]
[350127273,1737645042590,-4542.13,0.00016985,2]
[350127274,1737645042600,-964.26,0.00016985,2]
[350127275,1737645042609,-849.38,0.00016985,2]
[350127276,1737645042619,-1962.43,0.00016985,2]
[350127277,1737645042629,-500.0,0.00016985,2]
[350127278,1737645042638,-841.35,0.00016985,2]
[350127279,1737645042648,-1238.96,0.00016985,2]
[350127281,1737645042659,-1489.33,0.00016985,2]
[350127296,1737645042805,-500.0,0.00016985,2]
[350127298,1737645042815,-1000.0,0.00016985,2]
[350127300,1737645042825,-1181.81,0.00016985,2]
[350127302,1737645042835,-517.92,0.00016985,2]
[350127303,1737645042844,-1401.97,0.00016985,2]
[350127305,1737645042854,-1626.6,0.00016985,2]
[350127307,1737645042865,-500.0,0.00016986,2]
[350127310,1737645042875,-500.0,0.00016986,7]
[350127312,1737645042885,-567.41865004,0.00016986,2]
[350127314,1737645042895,-565.20844334,0.00016986,2]
[350127316,1737645042905,-500.0,0.00016986,2]
[350127318,1737645042914,-500.0,0.00016986,2]
[350127320,1737645042924,-500.0,0.00016986,2]
[350127321,1737645042933,-500.0,0.00016986,2]
[350127323,1737645042943,-500.0,0.00016986,2]
[350127325,1737645042952,-500.0,0.00016986,2]
[350127327,1737645042962,-500.0,0.00016986,2]
[350127329,1737645042972,-500.0,0.00016986,2]
[350127331,1737645042982,-500.0,0.00016986,2]
[350127333,1737645042992,-500.0,0.00016986,2]
[350127335,1737645043002,-500.0,0.00016986,2]
[350127338,1737645043011,-500.0,0.00016986,2]
[350127339,1737645043021,-500.0,0.00016986,2]
[350127341,1737645043031,-500.0,0.00016986,2]
[350127343,1737645043041,-500.0,0.00016986,2]
[350127346,1737645043053,-500.0,0.00016986,2]
[350127348,1737645043068,-500.0,0.00016986,2]
[350127350,1737645043078,-500.0,0.00016986,2]
[350127352,1737645043090,-500.0,0.00016986,2]
[350127354,1737645043099,-500.0,0.00016986,2]
[350127355,1737645043111,-500.0,0.00016986,2]
[350127357,1737645043122,-500.0,0.00016986,2]
[350127359,1737645043132,-500.0,0.00016986,2]
[350127361,1737645043142,-500.0,0.00016986,2]
[350127363,1737645043152,-500.0,0.00016986,2]
[350127365,1737645043162,-500.0,0.00016986,2]
[350127368,1737645043172,-728.78,0.00016986,2]
[350127370,1737645043183,-564.41581399,0.00016986,2]
[350127372,1737645043193,-500.0,0.00016986,2]
[350127373,1737645043202,-500.0,0.00016986,2]
[350127376,1737645043212,-500.0,0.00016986,2]
[350127378,1737645043222,-500.0,0.00016986,2]
[350127382,1737645043232,-500.0,0.00016986,2]
[350127385,1737645043243,-500.0,0.00016986,2]
[350127388,1737645043252,-500.0,0.00016986,2]
[350127389,1737645043261,-500.0,0.00016986,2]
[350127391,1737645043271,-500.0,0.00016986,2]
[350127393,1737645043280,-500.0,0.00016986,2]
[350127395,1737645043290,-500.0,0.00016986,2]
[350127397,1737645043300,-500.0,0.00016986,2]
[350127399,1737645043315,-500.0,0.00016986,2]
[350127402,1737645043325,-500.0,0.00016986,2]
[350127404,1737645043335,-435.81535518,0.00016986,2]
[350127406,1737645043344,-500.0,0.00016986,2]
[350127407,1737645043355,-500.0,0.00016986,2]
[350127409,1737645043364,-500.0,0.00016986,2]
[350127411,1737645043374,-561.4,0.00016986,2]
[350127414,1737645043384,-500.0,0.00016986,2]
[350127416,1737645043395,-500.0,0.00016986,2]
[350127418,1737645043405,-500.0,0.00016986,2]
[350127420,1737645043415,-500.0,0.00016986,2]
[350127422,1737645043425,-500.0,0.00016986,2]
[350127424,1737645043434,-500.0,0.00016986,2]
[350127425,1737645043444,-500.0,0.00016986,2]
[350127428,1737645043454,-770.38,0.00016986,2]
[350127430,1737645043464,-200.85309505,0.00016986,2]
[350127432,1737645043474,-500.0,0.00016986,2]
[350127434,1737645043484,-500.0,0.00016986,2]
[350127436,1737645043494,-553.93,0.00016986,2]
[350127438,1737645043504,-500.0,0.00016986,2]
[350127440,1737645043515,-816.19,0.00016986,2]
[350127441,1737645043525,-500.0,0.00016986,2]
[350127443,1737645043535,-500.0,0.00016986,2]
[350127446,1737645043547,-500.0,0.00016986,2]
[350127448,1737645043564,-500.0,0.00016986,2]
[350127449,1737645043574,-500.0,0.00016986,2]
[350127452,1737645043584,-500.0,0.00016986,2]
[350127454,1737645043594,-500.0,0.00016986,2]
[350127456,1737645043604,-500.0,0.00016986,2]
[350127457,1737645043615,-500.0,0.00016986,2]
[350127459,1737645043625,-500.0,0.00016986,2]
[350127461,1737645043635,-500.0,0.00016986,2]
[350127463,1737645043646,-500.0,0.00016986,2]
[350127466,1737645043656,-533.86,0.00016986,2]
[350127467,1737645043667,-500.0,0.00016986,2]
[350127469,1737645043677,-500.0,0.00016986,2]
[350127471,1737645043687,-500.0,0.00016986,2]
[350127473,1737645043697,-500.0,0.00016986,2]
[350127475,1737645043707,-500.0,0.00016986,2]
[350127477,1737645043716,-500.0,0.00016986,2]
[350127479,1737645043726,-500.0,0.00016986,2]
[350127481,1737645043737,-665.01,0.00016986,2]
[350127483,1737645043747,-500.0,0.00016986,2]
[350127485,1737645043759,-500.0,0.00016986,2]
[350127487,1737645043769,-591.449939,0.00016986,2]
[350127489,1737645043780,-500.0,0.00016986,2]
[350127491,1737645043790,-598.39,0.00016986,2]
[350127493,1737645043805,-500.0,0.00016986,2]
[350127495,1737645043817,-510.0,0.00016986,2]
[350127497,1737645043828,-666.93,0.00016986,2]
[350127499,1737645043838,-500.0,0.00016986,2]
[350127502,1737645043848,-665.125062,0.00016986,2]
[350127504,1737645043859,-611.43,0.00016986,2]
[350127506,1737645043872,-500.0,0.00016986,2]
[350127508,1737645043884,-500.0,0.00016986,2]
[350127510,1737645043895,-500.0,0.00016986,2]
[350127512,1737645043907,-500.0,0.00016986,2]
[350127514,1737645043918,-500.0,0.00016986,2]
[350127516,1737645043929,-500.0,0.00016986,2]
[350127518,1737645043939,-500.0,0.00016986,2]
[350127520,1737645043950,-500.0,0.00016986,2]
[350127522,1737645043961,-500.0,0.00016986,2]
[350127524,1737645043971,-645.07,0.00016986,2]
[350127529,1737645043981,-500.0,0.00016986,2]
[350127532,1737645043991,-279.56579104,0.00016986,2]
[350127536,1737645044001,-500.0,0.00016986,2]
[350127539,1737645044011,-500.0,0.00016986,2]
[350127545,1737645044021,-574.7,0.00016986,2]
[350127548,1737645044031,-500.0,0.00016986,2]
[350127553,1737645044041,-500.0,0.00016986,2]
[350127556,1737645044050,-481.39732467,0.00016986,2]
[350127561,1737645044069,-665.43,0.00016986,2]
[350127565,1737645044081,-500.0,0.00016986,2]
[350127569,1737645044093,-500.0,0.00016986,2]
[350127572,1737645044103,-500.0,0.00016986,2]
[350127577,1737645044113,-500.0,0.00016986,2]
[350127581,1737645044124,-643.73,0.00016986,2]
[350127585,1737645044135,-500.0,0.00016986,2]
[350127589,1737645044145,-512.19,0.00016986,2]
[350127593,1737645044156,-500.0,0.00016986,2]
[350127597,1737645044168,-661.94,0.00016986,2]
[350127601,1737645044180,-507.69444921,0.00016986,2]
[350127605,1737645044190,-552.31813886,0.00016986,2]
[350127608,1737645044200,-667.89,0.00016986,2]
[350127612,1737645044211,-539.11,0.00016986,2]
[350127615,1737645044221,-624.02,0.00016986,2]
[350127616,1737645044232,-500.0,0.00016986,2]
[350127620,1737645044243,-500.0,0.00016986,2]
[350127622,1737645044255,-500.0,0.00016986,2]
[350127625,1737645044270,-500.0,0.00016986,2]
[350127627,1737645044282,-652.9,0.00016986,2]
[350127630,1737645044293,-566.04,0.00016986,2]
[350127633,1737645044311,-500.0,0.00016986,2]
[350127635,1737645044321,-499.54219965,0.00016986,2]
[350127638,1737645044332,-500.0,0.00016986,2]
[350127640,1737645044342,-618.01,0.00016986,2]
[350127642,1737645044352,-500.0,0.00016986,2]
[350127645,1737645044363,-607.91,0.00016986,2]
[350127647,1737645044374,-530.48,0.00016986,2]
[350127650,1737645044385,-500.0,0.00016986,2]
[350127653,1737645044396,-500.0,0.00016986,2]
[350127655,1737645044406,-379.77976266,0.00016986,2]
[350127658,1737645044417,-539.65582775,0.00016986,2]
[350127660,1737645044428,-500.0,0.00016986,2]
[350127662,1737645044438,-345.16757846,0.00016986,2]
[350127665,1737645044449,-500.0,0.00016986,2]
[350127668,1737645044460,-500.0,0.00016986,2]
[350127671,1737645044470,-500.0,0.00016986,2]
[350127672,1737645044480,-500.0,0.00016986,2]
[350127675,1737645044490,-690.5,0.00016986,2]
[350127678,1737645044500,-731.93,0.00016986,2]
[350127681,1737645044510,-2136.21,0.00016986,2]
[350127682,1737645044519,-500.0,0.00016986,2]
[350127684,1737645044529,-500.0,0.00016986,2]
[350127686,1737645044539,-719.7,0.00016986,2]